fUST/lending_fUST_20250625
["ID","MTS","AMOUNT","RATE_DAILY","PERIOD"]
[367526249,1750843843730,-500.0,0.00018659,2]
[367526250,1750843843740,-500.0,0.00018659,2]
[367526251,1750843843750,-500.0,0.00018659,2]
[367526252,1750843843760,-500.0,0.00018659,2]
[367526253,1750843843770,-500.0,0.00018659,2]
[367526254,1750843843780,-500.0,0.00018659,2]
[367526255,1750843843789,-151.0,0.00018659,2]
[367526256,1750843843798,-500.0,0.00018659,2]
[367526257,1750843843807,-151.0,0.00018659,2]
[367526258,1750843843817,-227.54651037,0.00018659,2]
[367526259,1750843843826,-25000.0,0.00018659,2]
[367526260,1750843843835,-1750.456,0.00018714,2]
[367526261,1750843843844,-500.0,0.00018759,2]
[367526262,1750843843853,-340.60711221,0.00018761,2]
[367526263,1750843843862,-426.053602,0.00018761,2]
[367526264,1750843843872,-1815.222872,0.00018769,2]
[367526265,1750843843881,-2072.83,0.0001878,2]
[367526266,1750843843890,-616.12,0.0001878,2]
[367526267,1750843843899,-1523.86,0.0001878,2]
[367526268,1750843843909,-460.0,0.0001878,2]
[367526269,1750843843920,-1583.59,0.0001878,2]
[367526270,1750843843929,-460.0,0.00018781,2]
[367526271,1750843843938,-2045.99,0.00018781,2]
[367526272,1750843843948,-460.0,0.00018781,2]
[367526273,1750843843957,-505.76,0.00018781,2]
[367526274,1750843843966,-4516.73,0.00018781,2]
[367526275,1750843843976,-1522.03,0.00018781,2]
[367526276,1750843843985,-461.6,0.00018781,2]
[367526277,1750843843995,-460.0,0.00018781,2]
[367526278,1750843844006,-460.0,0.00018781,2]
[367526279,1750843844015,-460.0,0.00018781,2]
[367526280,1750843844024,-460.0,0.00018781,2]
[367526281,1750843844034,-489.05,0.00018781,2]
[367526282,1750843844043,-460.0,0.00018781,2]
[367526283,1750843844053,-749.92,0.00018782,2]
[367526284,1750843844062,-459.9,0.00018782,2]
[367526285,1750843844071,-460.0,0.00018782,2]
[367526286,1750843844080,-695.92,0.00018782,2]
[367526287,1750843844089,-460.0,0.00018782,2]
[367526288,1750843844098,-1728.47,0.00018782,2]
[367526289,1750843844107,-3695.45,0.00018782,2]
[367526290,1750843844117,-212.92,0.00018782,2]
[367526291,1750843844126,-799.24,0.00018782,2]
[367526292,1750843844136,-502.06,0.00018782,2]
[367526293,1750843844145,-1441.09,0.00018782,2]
[367526294,1750843844154,-460.0,0.00018782,2]
[367526296,1750843844163,-151.0,0.00018783,2]
[367526298,1750843844172,-151.0,0.00018784,2]
[367526300,1750843844181,-151.0,0.00018784,2]
[367526302,1750843844191,-151.0,0.00018784,2]
[367526304,1750843844199,-151.233426,0.00018784,2]
[367526306,1750843844208,-151.0,0.00018784,2]
[367526308,1750843844217,-366.0085437,0.00018795,2]
[367526309,1750843844226,-366.0085437,0.00018795,2]
[367526311,1750843844234,-366.0085437,0.00018795,2]
[367526313,1750843844243,-228.2027448,0.00018795,2]
[367526315,1750843844252,-151.0,0.000188,2]
[367526317,1750843844261,-1882.38611826,0.00018824,2]
[367526319,1750843844270,-1500.0,0.00018837,2]
[367526320,1750843844279,-12927.57985468,0.00018866,2]
[367526321,1750843844288,-1952.03440464,0.00018879,2]
[367526322,1750843844298,-151.0,0.000189,2]
[367526323,1750843844307,-151.0,0.000189,2]
[367526324,1750843844316,-3263.46329159,0.000189,2]
[367526325,1750843844326,-177.4156324,0.00018904,2]
[367526326,1750843844335,-177.4156324,0.00018904,2]
[367526327,1750843844344,-159.1939926,0.00018904,2]
[367526328,1750843844353,-159.1939926,0.00018904,2]
[367526329,1750843844362,-159.1939926,0.00018904,2]
[367526330,1750843844372,-318.2891092,0.00018904,2]
[367526331,1750843844381,-159.1939926,0.00018904,2]
[367526332,1750843844390,-159.1939926,0.00018904,2]
[367526333,1750843844399,-2024.25967761,0.00018934,2]
[367526334,1750843844409,-177.4156324,0.00018959,2]
[367526335,1750843844418,-177.4156324,0.00018959,2]
[367526336,1750843844428,-177.4156324,0.00018959,2]
[367526337,1750843844437,-574.9477627,0.00018959,2]
[367526338,1750843844447,-162.9313504,0.00018959,2]
[367526339,1750843844457,-2099.15728568,0.00018989,2]
[367526340,1750843844466,-9032.10348102,0.0001899,2]
[367526341,1750843844475,-1500.0,0.00018992,2]
[367526342,1750843844484,-203.605787,0.00019,2]
[367526343,1750843844493,-151.893006,0.00019,2]
[367526344,1750843844502,-401.48317,0.00019,2]
[367526345,1750843844512,-151.0,0.00019,2]
[367526346,1750843844521,-151.0,0.00019,2]
[367526347,1750843844531,-401.48317,0.00019,2]
[367526348,1750843844540,-151.0,0.00019,2]
[367526349,1750843844549,-151.0,0.00019,2]
[367526350,1750843844559,-151.0,0.00019,2]
[367526351,1750843844568,-72617.94995232,0.00019,2]
[367526352,1750843844577,-151.0,0.00019,2]
[367526353,1750843844586,-151.0,0.00019,2]
[367526354,1750843844596,-151.0,0.00019,2]
[367526355,1750843844605,-152.403659,0.00019,2]
[367526356,1750843844614,-151.0,0.00019,2]
[367526357,1750843844624,-375.215284,0.00019,2]
[367526358,1750843844633,-375.215284,0.00019,2]
[367526359,1750843844642,-151.0,0.00019,2]
[367526360,1750843844651,-151.0,0.00019,2]
[367526361,1750843844660,-151.365861,0.00019,2]
[367526362,1750843844671,-151.0,0.00019,2]
[367526363,1750843844680,-151.0,0.00019,2]
[367526364,1750843844690,-554.128203,0.00019,2]
[367526365,1750843844699,-554.128203,0.00019,2]
[367526366,1750843844708,-151.0,0.00019,2]
[367526367,1750843844718,-1100.16790343,0.00019,2]
[367526368,1750843844728,-151.0,0.00019,2]
[367526369,1750843844737,-151.0,0.00019,2]
[367526370,1750843844747,-809.919128,0.00019,2]
[367526371,1750843844758,-809.919128,0.00019,2]
[367526372,1750843844767,-328.332496,0.00019,2]
[367526374,1750843844776,-328.332496,0.00019,2]
[367526375,1750843844786,-151.0,0.00019,2]
[367526377,1750843844795,-242.002,0.00019,2]
[367526378,1750843844805,-151.0,0.00019,2]
[367526379,1750843844815,-151.0,0.00019,2]
[367526380,1750843844825,-1969.476509,0.00019,2]
[367526381,1750843844834,-1969.476509,0.00019,2]
[367526382,1750843844843,-151.0,0.00019,2]
[367526383,1750843844852,-2176.82610525,0.00019044,2]
[367526384,1750843844862,-2072.83,0.00019054,2]
[367526385,1750843844871,-616.12,0.00019054,2]
[367526386,1750843844880,-460.0,0.00019054,2]
[367526387,1750843844889,-1583.59,0.00019054,2]
[367526388,1750843844898,-460.0,0.00019055,2]
[367526389,1750843844907,-2045.99,0.00019055,2]
[367526390,1750843844916,-355.08,0.00019055,2]
[367526391,1750843844925,-505.76,0.00019055,2]
[367526392,1750843844934,-4516.73,0.00019055,2]
[367526393,1750843844943,-1522.03,0.00019055,2]
[367526394,1750843844952,-461.6,0.00019055,2]
[367526395,1750843844962,-460.0,0.00019055,2]
[367526396,1750843844971,-460.0,0.00019055,2]
[367526397,1750843844980,-460.0,0.00019055,2]
[367526398,1750843844989,-298.1,0.00019055,2]
[367526399,1750843844999,-489.05,0.00019055,2]
[367526400,1750843845009,-460.0,0.00019055,2]
[367526401,1750843845018,-749.92,0.00019056,2]
[367526402,1750843845027,-151.0,0.00019056,2]
[367526403,1750843845036,-460.0,0.00019056,2]
[367526404,1750843845046,-695.92,0.00019056,2]
[367526405,1750843845055,-460.0,0.00019056,2]
[367526406,1750843845064,-1728.47,0.00019056,2]
[367526407,1750843845073,-3695.45,0.00019056,2]
[367526408,1750843845083,-799.24,0.00019056,2]
[367526409,1750843845092,-502.06,0.00019056,2]
[367526410,1750843845102,-1441.09,0.00019056,2]
[367526411,1750843845111,-460.0,0.00019056,2]
[367526412,1750843845120,-151.0,0.00019057,2]
[367526413,1750843845129,-151.0,0.00019057,2]
[367526414,1750843845138,-151.0,0.00019057,2]
[367526415,1750843845148,-151.0,0.00019057,2]
[367526416,1750843845157,-1140.051,0.00019071,2]
[367526417,1750843845166,-177.798,0.00019071,2]
[367526418,1750843845176,-177.4156324,0.00019096,2]
[367526419,1750843845185,-159.1939926,0.00019096,2]
[367526420,1750843845194,-571.0556217,0.00019096,2]
[367526421,1750843845203,-1041.97429518,0.00019099,2]
[367526422,1750843845212,-6030.27815055,0.000191,2]
[367526423,1750843845221,-6650.288201,0.000191,5]
[367526424,1750843845230,-151.0,0.000191,2]
[367526425,1750843845239,-151.0,0.000191,2]
[367526426,1750843845249,-151.0,0.000191,2]
[367526427,1750843845258,-151.0,0.000191,2]
[367526428,1750843845268,-151.0,0.000191,2]
[367526429,1750843845278,-12927.57985468,0.00019107,2]
[367526430,1750843845287,-49922.89278502,0.00019136,2]
[367526431,1750843845297,-151.0,0.00019136,2]
[367526432,1750843845306,-151.0,0.00019136,2]
[367526433,1750843845315,-158.862416,0.00019136,2]
[367526434,1750843845324,-151.0,0.00019136,2]
[367526435,1750843845333,-151.0,0.00019136,2]
[367526436,1750843845342,-151.0,0.00019136,2]
[367526437,1750843845352,-151.0,0.00019136,2]
[367526438,1750843845361,-151.0,0.00019136,2]
[367526439,1750843845371,-151.0,0.00019136,2]
[367526440,1750843845380,-39950.73438669,0.00019136,2]
[367526441,1750843845694,-427.33683898,0.00016862,2]
[367526442,1750843845704,-460.0,0.00016864,2]
[367526443,1750843845715,-153.34,0.00017138,2]
[367526444,1750843845724,-461.89,0.00017411,2]
[367526445,1750843845733,-461.89,0.00017685,2]
[367526446,1750843845742,-461.89,0.00017959,2]
[367526447,1750843845754,-461.89,0.00018233,2]
[367526448,1750843845763,-151.0,0.00018383,2]
[367526449,1750843845773,-461.89,0.00018507,2]
[367526450,1750843845782,-151.0,0.00018659,2]
[367526451,1750843845791,-461.89,0.00018781,2]
[367526452,1750843845801,-151.0,0.00019,2]
[367526453,1750843845810,-461.89,0.00019055,2]
[367526454,1750843845819,-12516.16065975,0.00019136,2]
[367526457,1750843846630,-460.0,0.00016862,2]
[367526458,1750843846639,-460.0,0.00016863,2]
[367526459,1750843846649,-1373.62398356,0.00018659,2]
[367526460,1750843846739,-581.884384,0.00018659,2]
[367526461,1750844057499,-4938.0,0.00016691,2]
[367526462,1750844098826,203.9287656,0.00015931,2]
[367526489,1750844263540,-4967.0,0.00016524,2]
[367526490,1750844410130,159.806349,0.00013699,2]
[367526491,1750844460791,-5000.0,0.00016359,2]
[367526492,1750844526533,-4942.0,0.00016593,2]
[367526493,1750844667724,-5000.0,0.00016427,2]
[367526494,1750844734908,-274.0,0.00016591,2]
[367526495,1750844734932,-300.0,0.00016591,2]
[367526496,1750844734955,-300.0,0.00016591,2]
[367526497,1750844734978,-1200.0,0.00016591,2]
[367526498,1750844735002,-5000.0,0.00016592,2]
[367526499,1750844735023,-673.0,0.00016592,2]
[367526500,1750844786420,351.0,0.00024649,120]
[367526509,1750844803991,-4902.0,0.00016426,2]
[367526510,1750844819154,300.0,0.00024649,120]
[367526511,1750844874189,-162.270322,0.00016353,2]
[367526512,1750844874215,-38.729678,0.00016426,2]
[367526514,1750844940407,-4887.0,0.00016426,2]
[367526572,1750845031962,-113.0,0.00016426,2]
[367526573,1750845031972,-17.67908374,0.00016592,2]
[367526575,1750845031981,-2165.38291257,0.00016764,2]
[367526577,1750845031990,-300.0,0.00016857,2]
[367526579,1750845031999,-1200.0,0.00016857,2]
[367526581,1750845032009,-300.0,0.00016857,2]
[367526582,1750845032018,-1200.0,0.00016858,2]
[367526584,1750845032027,-500.0,0.00016858,2]
[367526586,1750845032036,-210.5542378,0.00016858,2]
[367526587,1750845032047,-289.4457622,0.00016858,2]
[367526589,1750845032056,-500.0,0.00016858,2]
[367526590,1750845032065,-522.49383557,0.00016858,2]
[367526923,1750845038401,-5000.0,0.00016689,2]
[367526924,1750845038412,-14.32386915,0.00016858,2]
[367526925,1750845038421,-305.49120709,0.00016858,2]
[367526926,1750845038430,-383.82736876,0.00016858,2]
[367526927,1750845038439,-500.0,0.00016858,2]
[367526928,1750845038449,-500.0,0.00016858,2]
[367526929,1750845038458,-500.0,0.00016858,2]
[367526930,1750845038467,-485.74349881,0.00016858,2]
[367526931,1750845038476,-500.0,0.00016858,2]
[367526932,1750845038485,-500.0,0.00016858,2]
[367526933,1750845038494,-235.0,0.00016858,2]
[367526934,1750845038504,-324.40254862,0.00016858,2]
[367526935,1750845038513,-468.18059167,0.00016858,2]
[367526936,1750845038522,-500.0,0.00016858,2]
[367526937,1750845038531,-500.0,0.00016858,2]
[367526938,1750845038543,-500.0,0.00016858,2]
[367526939,1750845038553,-500.0,0.00016858,2]
[367526940,1750845038562,-500.0,0.00016858,2]
[367526941,1750845038572,-616.28094779,0.00016858,2]
[367526942,1750845038581,-500.0,0.00016858,2]
[367526943,1750845038591,-189.23712356,0.00016858,2]
[367526944,1750845038601,-500.0,0.00016858,2]
[367526945,1750845038611,-500.0,0.00016858,2]
[367526946,1750845038620,-503.99680582,0.00016858,2]
[367526947,1750845038630,-500.0,0.00016858,2]
[367526948,1750845038639,-458.24498177,0.00016858,2]
[367526949,1750845038653,-500.0,0.00016858,2]
[367526950,1750845038663,-500.0,0.00016858,2]
[367526951,1750845038673,-500.0,0.00016858,2]
[367526952,1750845038683,-500.0,0.00016858,2]
[367526953,1750845038695,-500.0,0.00016858,2]
[367526954,1750845038706,-500.0,0.00016858,2]
[367526955,1750845038717,-500.0,0.00016858,2]
[367526956,1750845038726,-500.0,0.00016858,2]
[367526957,1750845038736,-460.0,0.00016859,2]
[367526958,1750845038745,-460.0,0.00016859,2]
[367526959,1750845038755,-315.29212914,0.00016859,2]
[367526960,1750845038764,-460.0,0.00016859,2]
[367526961,1750845038774,-460.0,0.00016859,2]
[367526962,1750845038783,-460.0,0.00016859,2]
[367526963,1750845038792,-460.0,0.00016859,2]
[367526964,1750845038801,-460.0,0.00016859,2]
[367526965,1750845038812,-460.0,0.00016859,2]
[367526966,1750845038821,-441.36699694,0.00016859,2]
[367526967,1750845038831,-563.01230618,0.00016859,2]
[367526968,1750845038840,-460.0,0.00016859,2]
[367526969,1750845038849,-460.0,0.00016859,2]
[367526970,1750845038859,-410.81470254,0.00016859,2]
[367526971,1750845038868,-460.0,0.00016859,2]
[367526972,1750845038877,-460.0,0.00016859,2]
[367526973,1750845038886,-460.0,0.00016859,2]
[367526974,1750845038895,-460.0,0.00016859,2]
[367526975,1750845038905,-433.3441569,0.00016859,2]
[367526976,1750845038914,-460.0,0.00016859,2]
[367526977,1750845038923,-1810.61,0.00016859,2]
[367526978,1750845038933,-460.0,0.00016859,2]
[367526979,1750845038942,-460.0,0.00016859,2]
[367526980,1750845038952,-460.0,0.00016859,2]
[367526981,1750845038962,-460.0,0.00016859,2]
[367526982,1750845038971,-460.0,0.00016859,2]
[367526983,1750845038981,-460.0,0.00016859,2]
[367526984,1750845038991,-460.0,0.00016859,2]
[367526985,1750845039001,-460.0,0.00016859,2]
[367526986,1750845039011,-460.0,0.00016859,2]
[367526987,1750845039020,-460.0,0.00016859,2]
[367526988,1750845039031,-460.0,0.00016859,2]
[367526989,1750845039041,-460.0,0.00016859,2]
[367526990,1750845039051,-460.0,0.00016859,2]
[367526991,1750845039060,-1769.19,0.00016859,2]
[367526992,1750845039070,-522.63,0.00016859,2]
[367526993,1750845039079,-460.0,0.00016859,2]
[367526994,1750845039089,-410.0,0.00016859,2]
[367526995,1750845039098,-460.0,0.00016859,2]
[367526996,1750845039108,-1268.36,0.00016859,2]
[367526997,1750845039117,-460.0,0.00016859,2]
[367526998,1750845039127,-556.93,0.00016859,2]
[367526999,1750845039136,-460.0,0.00016859,2]
[367527000,1750845039146,-560.95,0.00016859,2]
[367527001,1750845039155,-583.9813958,0.00016859,2]
[367527002,1750845039165,-460.0,0.00016859,2]
[367527003,1750845039174,-460.0,0.00016859,2]
[367527004,1750845039184,-460.0,0.00016859,2]
[367527005,1750845039195,-501.36,0.00016859,2]
[367527006,1750845039204,-460.0,0.00016859,2]
[367527007,1750845039214,-460.0,0.00016859,2]
[367527008,1750845039223,-379.25576985,0.00016859,2]
[367527009,1750845039233,-460.0,0.00016859,2]
[367527010,1750845039242,-460.0,0.00016859,2]
[367527011,1750845039251,-460.0,0.00016859,2]
[367527012,1750845039260,-460.0,0.00016859,2]
[367527013,1750845039269,-460.0,0.00016859,2]
[367527014,1750845039280,-460.0,0.00016859,2]
[367527015,1750845039289,-460.0,0.00016859,2]
[367527016,1750845039298,-460.0,0.00016859,2]
[367527017,1750845039308,-460.0,0.00016859,2]
[367527018,1750845039317,-460.0,0.00016859,2]
[367527019,1750845039329,-414.16166827,0.00016859,2]
[367527020,1750845039338,-507.73136807,0.00016859,2]
[367527022,1750845039347,-460.0,0.00016859,2]
[367527023,1750845039356,-460.0,0.00016859,2]
[367527025,1750845039366,-532.37,0.00016859,2]
[367527028,1750845039375,-460.0,0.00016859,2]
[367527029,1750845039384,-498.61,0.00016859,2]
[367527030,1750845039394,-1295.58,0.00016859,2]
[367527031,1750845039403,-460.0,0.00016859,2]
[367527032,1750845039412,-460.0,0.00016859,2]
[367527033,1750845039422,-262.56085329,0.00016859,2]
[367527034,1750845039431,-513.43,0.00016859,2]
[367527035,1750845039440,-460.0,0.00016859,2]
[367527036,1750845039450,-491.11,0.00016859,2]
[367527037,1750845039459,-460.0,0.00016859,2]
[367527038,1750845039468,-460.0,0.00016859,2]
[367527039,1750845039478,-460.0,0.00016859,2]
[367527040,1750845039487,-471.16412517,0.00016859,2]
[367527041,1750845039497,-460.0,0.00016859,2]
[367527042,1750845039506,-460.0,0.00016859,2]
[367527043,1750845039515,-460.0,0.00016859,2]
[367527044,1750845039525,-1436.98,0.00016859,2]
[367527045,1750845039534,-460.0,0.00016859,2]
[367527046,1750845039543,-461.97395657,0.00016859,2]
[367527047,1750845039553,-460.0,0.00016859,2]
[367527048,1750845039562,-460.0,0.00016859,2]
[367527050,1750845039571,-460.15162995,0.0001686,2]
[367527051,1750845039581,-460.0,0.0001686,2]
[367527052,1750845039590,-460.0,0.0001686,2]
[367527053,1750845039600,-460.0,0.0001686,2]
[367527054,1750845039609,-460.0,0.0001686,2]
[367527055,1750845039619,-460.0,0.0001686,2]
[367527057,1750845039628,-460.0,0.0001686,2]
[367527059,1750845039637,-1000.0,0.0001686,2]
[367527060,1750845039650,-460.0,0.0001686,2]
[367527061,1750845039660,-460.0,0.0001686,2]
[367527062,1750845039669,-460.0,0.0001686,2]
[367527063,1750845039678,-460.0,0.0001686,2]
[367527065,1750845039687,-460.0,0.0001686,2]
[367527067,1750845039697,-465.24367281,0.0001686,2]
[367527069,1750845039706,-460.0,0.0001686,2]
[367527071,1750845039715,-460.0,0.0001686,2]
[367527073,1750845039724,-500.0,0.0001686,2]
[367527075,1750845039733,-420.47250131,0.0001686,2]
[367527077,1750845039742,-460.0,0.0001686,2]
[367527079,1750845039752,-460.0,0.0001686,2]
[367527081,1750845039762,-500.0,0.0001686,2]
[367527083,1750845039771,-500.0,0.0001686,2]
[367527085,1750845039781,-199.62472061,0.0001686,2]
[367527087,1750845039791,-508.17927845,0.0001686,2]
[367527089,1750845039804,-460.0,0.0001686,2]
[367527091,1750845039813,-500.0,0.0001686,2]
[367527093,1750845039823,-460.0,0.0001686,2]
[367527095,1750845039832,-477.6931441,0.0001686,2]
[367527097,1750845039841,-460.0,0.0001686,2]
[367527098,1750845039850,-460.0,0.0001686,2]
[367527099,1750845039860,-460.0,0.0001686,2]
[367527101,1750845039869,-4462.47,0.0001686,2]
[367527102,1750845039878,-460.0,0.0001686,2]
[367527103,1750845039888,-460.0,0.0001686,2]
[367527104,1750845039897,-460.0,0.0001686,2]
[367527105,1750845039906,-460.0,0.0001686,2]
[367527106,1750845039916,-460.0,0.0001686,2]
[367527107,1750845039925,-460.0,0.0001686,2]
[367527108,1750845039934,-529.12,0.0001686,2]
[367527110,1750845039943,-460.0,0.0001686,2]
[367527111,1750845039953,-460.0,0.0001686,2]
[367527113,1750845039962,-460.0,0.0001686,2]
[367527115,1750845039971,-157.66197217,0.0001686,2]
[367527116,1750845039981,-462.69158793,0.0001686,2]
[367527117,1750845039991,-574.56107649,0.0001686,2]
[367527118,1750845040001,-460.0,0.0001686,2]
[367527119,1750845040010,-460.0,0.0001686,2]
[367527120,1750845040019,-460.0,0.0001686,2]
[367527121,1750845040029,-460.0,0.0001686,2]
[367527122,1750845040039,-460.0,0.0001686,2]
[367527123,1750845040049,-460.0,0.0001686,2]
[367527124,1750845040058,-460.0,0.0001686,2]
[367527125,1750845040068,-460.0,0.0001686,2]
[367527127,1750845040078,-460.0,0.0001686,2]
[367527129,1750845040087,-460.0,0.0001686,2]
[367527131,1750845040097,-460.0,0.0001686,2]
[367527132,1750845040106,-460.0,0.0001686,2]
[367527134,1750845040115,-460.0,0.00016861,2]
[367527136,1750845040125,-460.0,0.00016861,2]
[367527138,1750845040135,-460.0,0.00016861,2]
[367527139,1750845040145,-460.0,0.00016861,2]
[367527140,1750845040154,-460.0,0.00016861,2]
[367527141,1750845040164,-460.0,0.00016861,2]
[367527142,1750845040174,-460.0,0.00016861,2]
[367527143,1750845040183,-126.00010826,0.00016861,2]
[367527144,1750845040198,-333.99989174,0.00016861,2]
[367527145,1750845040207,-460.0,0.00016861,2]
[367527146,1750845040217,-460.0,0.00016861,2]
[367527147,1750845040226,-365.82093533,0.00016861,2]
[367527148,1750845040238,-94.17906467,0.00016861,2]
[367527149,1750845040247,-460.0,0.00016861,2]
[367527150,1750845040257,-460.0,0.00016861,2]
[367527151,1750845040266,-460.0,0.00016861,2]
[367527152,1750845040276,-460.0,0.00016861,2]
[367527153,1750845040285,-460.0,0.00016861,2]
[367527154,1750845040295,-460.0,0.00016861,2]
[367527155,1750845040304,-460.0,0.00016861,2]
[367527156,1750845040314,-460.0,0.00016861,2]
[367527157,1750845040323,-460.0,0.00016861,2]
[367527158,1750845040333,-460.0,0.00016861,2]
[367527159,1750845040342,-460.0,0.00016861,2]
[367527160,1750845040351,-354.34755106,0.00016861,2]
[367527161,1750845040361,-460.0,0.00016861,2]
[367527162,1750845040370,-460.0,0.00016861,2]
[367527163,1750845040380,-460.0,0.00016861,2]
[367527164,1750845040389,-504.6917545,0.00016861,2]
[367527165,1750845040399,-463.51721073,0.00016861,2]
[367527166,1750845040408,-929.87,0.00016861,2]
[367527167,1750845040417,-460.0,0.00016861,2]
[367527168,1750845040427,-460.0,0.00016861,2]
[367527169,1750845040436,-460.0,0.00016861,2]
[367527170,1750845040446,-460.0,0.00016861,2]
[367527171,1750845040593,-460.0,0.00016861,2]
[367527172,1750845040603,-618.94,0.00016861,2]
[367527173,1750845040613,-460.0,0.00016861,2]
[367527174,1750845040623,-600.0,0.00016861,2]
[367527175,1750845040632,-1512.44,0.00016861,2]
[367527176,1750845040642,-3230.87,0.00016861,2]
[367527177,1750845040655,-460.0,0.00016861,2]
[367527178,1750845040664,-460.0,0.00016861,2]
[367527179,1750845040675,-460.0,0.00016861,2]
[367527180,1750845040685,-756.04,0.00016861,2]
[367527181,1750845040701,-460.0,0.00016861,2]
[367527182,1750845040710,-1220.5,0.00016861,2]
[367527183,1750845040720,-480.23,0.00016861,2]
[367527184,1750845040730,-561.68,0.00016862,2]
[367527185,1750845040739,-359.18502408,0.00016862,2]
[367527186,1750845040749,-460.0,0.00016862,2]
[367527187,1750845040758,-460.0,0.00016862,2]
[367527188,1750845040768,-460.0,0.00016862,2]
[367527189,1750845040778,-581.88423486,0.00016862,2]
[367527190,1750845040787,-351.52281316,0.00016862,2]
[367527191,1750845040797,-460.4154213,0.00016862,2]
[367527192,1750845040806,-460.0,0.00016862,2]
[367527193,1750845040816,-460.0,0.00016862,2]
[367527194,1750845040826,-460.0,0.00016862,2]
[367527195,1750845040836,-462.51052273,0.00016862,2]
[367527196,1750845040845,-460.0,0.00016862,2]
[367527197,1750845040854,-162.21852995,0.00016862,2]
[367527198,1750845040863,-177.51,0.00016862,2]
[367527199,1750845040872,-460.0,0.00016862,2]
[367527200,1750845040882,-460.0,0.00016862,2]
[367527201,1750845040891,-322.07900147,0.00016862,2]
[367527202,1750845040900,-460.0,0.00016862,2]
[367527203,1750845040910,-460.0,0.00016862,2]
[367527204,1750845040919,-460.0,0.00016862,2]
[367527205,1750845040928,-460.0,0.00016862,2]
[367527206,1750845040938,-405.24742168,0.00016862,2]
[367527207,1750845040949,-460.0,0.00016862,2]
[367527208,1750845040958,-460.0,0.00016862,2]
[367527209,1750845040968,-460.0,0.00016862,2]
[367527210,1750845040977,-647.14,0.00016862,2]
[367527211,1750845040987,-460.0,0.00016862,2]
[367527212,1750845040996,-460.0,0.00016862,2]
[367527213,1750845041006,-460.0,0.00016862,2]
[367527214,1750845041015,-460.0,0.00016862,2]
[367527215,1750845041025,-460.0,0.00016862,2]
[367527216,1750845041034,-460.0,0.00016862,2]
[367527217,1750845041044,-571.55139027,0.00016862,2]
[367527218,1750845041053,-460.0,0.00016862,2]
[367527219,1750845041063,-460.0,0.00016862,2]
[367527220,1750845041072,-460.0,0.00016862,2]
[367527221,1750845041082,-460.0,0.00016862,2]
[367527222,1750845041092,-460.0,0.00016862,2]
[367527223,1750845041101,-460.0,0.00016862,2]
[367527224,1750845041110,-460.0,0.00016862,2]
[367527225,1750845041120,-460.0,0.00016862,2]
[367527226,1750845041149,-460.0,0.00016862,2]
[367527227,1750845041161,-264.23014974,0.00016862,2]
[367527228,1750845041171,-460.0,0.00016862,2]
[367527229,1750845041181,-460.0,0.00016862,2]